fUSD/lending_fUSD_20240625
["ID","MTS","AMOUNT","RATE_DAILY","PERIOD"]
[330373772,1719337911406,-522.58,0.0002,2]
[330373773,1719337911416,-504.45,0.0002,2]
[330373774,1719337911426,-500.0,0.0002,2]
[330373775,1719337911435,-1285.26,0.0002,2]
[330373776,1719337911445,-500.0,0.0002,2]
[330373777,1719337911456,-881.49,0.0002,2]
[330373778,1719337911465,-1817.94,0.0002,2]
[330373779,1719337911474,-5556.35,0.0002,2]
[330373780,1719337911484,-500.0,0.0002,2]
[330373781,1719337911493,-578.91303357,0.0002,2]
[330373782,1719337911503,-922.55,0.0002,2]
[330373783,1719337911513,-4305.82,0.0002,2]
[330373784,1719337911523,-500.0,0.0002,2]
[330373785,1719337911532,-1298.55,0.0002,2]
[330373786,1719337911542,-500.0,0.0002,2]
[330373787,1719337911551,-1507.92,0.0002,2]
[330373788,1719337911561,-2413.43,0.0002,2]
[330373789,1719337911572,-500.0,0.0002,2]
[330373790,1719337911582,-3590.68,0.0002,2]
[330373791,1719337911595,-3243.57,0.0002,2]
[330373792,1719337911605,-1317.91,0.0002,2]
[330373793,1719337911614,-1549.61,0.0002,2]
[330373794,1719337911623,-2001.24,0.0002,2]
[330373795,1719337911636,-564.53,0.0002,2]
[330373796,1719337911646,-1628.62,0.0002,2]
[330373797,1719337911656,-2964.41,0.0002,2]
[330373798,1719337911665,-733.32,0.0002,2]
[330373799,1719337911675,-1072.84452419,0.0002,2]
[330373800,1719337911685,-500.0,0.0002,2]
[330373801,1719337911695,-3914.84,0.0002,2]
[330373802,1719337911704,-3375.19,0.0002,2]
[330373803,1719337911714,-500.0,0.0002,2]
[330373804,1719337911724,-1706.95,0.0002,2]
[330373805,1719337911734,-2549.76,0.0002,2]
[330373806,1719337911744,-14641.98,0.0002,2]
[330373807,1719337911754,-1141.9,0.0002,2]
[330373808,1719337911764,-971.21,0.0002,2]
[330373809,1719337911774,-500.0,0.0002,2]
[330373810,1719337911783,-4437.26,0.0002,2]
[330373811,1719337911793,-500.0,0.0002,2]
[330373812,1719337911803,-716.2,0.0002,2]
[330373813,1719337911812,-2142.83,0.0002,2]
[330373814,1719337911822,-6040.67,0.0002,2]
[330373815,1719337911832,-500.0,0.0002,2]
[330373816,1719337911844,-500.0,0.0002,2]
[330373817,1719337911854,-1309.2,0.0002,2]
[330373818,1719337911864,-500.0,0.0002,2]
[330373819,1719337911873,-500.0,0.0002,2]
[330373820,1719337911883,-500.0,0.0002,2]
[330373821,1719337911892,-500.0,0.0002,2]
[330373822,1719337911902,-1734.08,0.0002,2]
[330373823,1719337911911,-648.97759923,0.0002,2]
[330373824,1719337911921,-500.0,0.0002,2]
[330373825,1719337911930,-1799.68,0.0002,2]
[330373826,1719337911940,-500.0,0.0002,2]
[330373827,1719337911950,-500.0,0.0002,2]
[330373828,1719337911959,-500.0,0.0002,2]
[330373829,1719337911968,-1105.8,0.0002,2]
[330373830,1719337911978,-955.34,0.0002,2]
[330373831,1719337911988,-500.0,0.0002,2]
[330373832,1719337911997,-2122.24,0.0002,2]
[330373833,1719337912006,-1732.57,0.0002,2]
[330373834,1719337912017,-500.0,0.0002,2]
[330373835,1719337912026,-500.0,0.0002,2]
[330373836,1719337912036,-180.2509429,0.0002,2]
[330373837,1719337912045,-1579.37,0.0002,2]
[330373838,1719337912055,-3399.27,0.0002,2]
[330373839,1719337912064,-500.0,0.0002,2]
[330373840,1719337912074,-932.92,0.0002,2]
[330373841,1719337912083,-500.0,0.0002,2]
[330373842,1719337912093,-2440.43,0.0002,2]
[330373843,1719337912103,-3708.7,0.0002,2]
[330373844,1719337912112,-1254.93,0.0002,2]
[330373845,1719337912122,-534.2676502,0.0002,2]
[330373846,1719337912132,-2081.22,0.0002,2]
[330373847,1719337912141,-1071.44,0.0002,2]
[330373848,1719337912151,-500.0,0.0002,2]
[330373849,1719337912166,-59416.31,0.0002,2]
[330373850,1719337912175,-500.0,0.0002,2]
[330373851,1719337912185,-2321.72,0.0002,2]
[330373852,1719337912196,-500.0,0.0002,2]
[330373853,1719337912205,-2376.71,0.0002,2]
[330373854,1719337912215,-500.0,0.0002,2]
[330373855,1719337912225,-1241.56,0.0002,2]
[330373856,1719337912236,-564.08,0.0002,2]
[330373857,1719337912246,-500.0,0.0002,2]
[330373858,1719337912256,-502.36637154,0.0002,2]
[330373859,1719337912266,-565.98,0.0002,2]
[330373860,1719337912275,-5136.03,0.0002,2]
[330373861,1719337912284,-500.0,0.0002,2]
[330373862,1719337912294,-4739.43,0.0002,2]
[330373863,1719337912303,-572.13,0.0002,2]
[330373864,1719337912313,-2867.83,0.0002,2]
[330373865,1719337912323,-1989.23,0.0002,2]
[330373866,1719337912332,-500.0,0.0002,2]
[330373867,1719337912343,-572.5,0.0002,2]
[330373868,1719337912353,-500.0,0.0002,2]
[330373869,1719337912363,-7381.85,0.0002,2]
[330373870,1719337912372,-1377.37,0.0002,2]
[330373871,1719337912382,-2476.55,0.0002,2]
[330373872,1719337912392,-2711.7,0.0002,2]
[330373873,1719337912401,-500.0,0.0002,2]
[330373874,1719337912411,-502.51354031,0.0002,2]
[330373875,1719337912421,-500.0,0.0002,2]
[330373876,1719337912431,-3777.42,0.0002,2]
[330373877,1719337912440,-500.0,0.0002,2]
[330373878,1719337912450,-2118.67,0.0002,2]
[330373879,1719337912460,-899.15,0.0002,2]
[330373880,1719337912469,-3727.83,0.0002,2]
[330373881,1719337912479,-500.0,0.0002,2]
[330373882,1719337912488,-500.0,0.0002,2]
[330373883,1719337912497,-500.0,0.0002,2]
[330373884,1719337912507,-1714.59,0.0002,2]
[330373885,1719337912517,-500.0,0.0002,2]
[330373886,1719337912526,-1249.51,0.0002,2]
[330373887,1719337912536,-500.0,0.0002,2]
[330373888,1719337912546,-1124.92,0.0002,2]
[330373889,1719337912555,-7801.42,0.0002,2]
[330373890,1719337912564,-500.0,0.0002,2]
[330373891,1719337912575,-500.0,0.0002,2]
[330373892,1719337912585,-500.0,0.0002,2]
[330373893,1719337912594,-756.47,0.0002,2]
[330373894,1719337912604,-513.46,0.0002,2]
[330373895,1719337912613,-1269.94,0.0002,2]
[330373896,1719337912623,-500.0,0.0002,2]
[330373897,1719337912633,-5672.8,0.0002,2]
[330373898,1719337912643,-1185.0,0.0002,2]
[330373899,1719337912653,-500.0,0.0002,2]
[330373900,1719337912663,-500.0,0.0002,2]
[330373901,1719337912672,-500.0,0.0002,2]
[330373902,1719337912682,-500.0,0.0002,2]
[330373903,1719337912691,-534.89,0.0002,2]
[330373904,1719337912701,-2615.49,0.0002,2]
[330373905,1719337912710,-646.58,0.0002,2]
[330373906,1719337912720,-500.0,0.0002,2]
[330373907,1719337912730,-293.48253071,0.0002,2]
[330373908,1719337912739,-2694.51,0.0002,2]
[330373909,1719337912749,-1157.21,0.0002,2]
[330373910,1719337912758,-804.63,0.0002,2]
[330373911,1719337912768,-500.0,0.0002,2]
[330373912,1719337912778,-500.0,0.0002,2]
[330373913,1719337912787,-2626.43,0.0002,2]
[330373914,1719337912797,-662.07,0.0002,2]
[330373915,1719337912807,-4836.5,0.0002,2]
[330373916,1719337912816,-1217.03,0.0002,2]
[330373917,1719337912826,-500.0,0.0002,2]
[330373918,1719337912836,-771.68,0.0002,2]
[330373919,1719337912845,-500.0,0.0002,2]
[330373920,1719337912855,-500.0,0.0002,2]
[330373921,1719337912865,-754.98,0.0002,2]
[330373922,1719337912875,-1630.22,0.0002,2]
[330373923,1719337912884,-500.0,0.0002,2]
[330373924,1719337912894,-2071.66,0.0002,2]
[330373925,1719337912903,-500.0,0.0002,2]
[330373926,1719337912913,-1168.43,0.0002,2]
[330373927,1719337912923,-504.04439392,0.0002,2]
[330373928,1719337912933,-500.0,0.0002,2]
[330373929,1719337912943,-524.31,0.0002,2]
[330373930,1719337912954,-500.0,0.0002,2]
[330373931,1719337912966,-172.24001103,0.0002,2]
[330373932,1719337912976,-781.04,0.0002,2]
[330373933,1719337912986,-1588.79,0.0002,2]
[330373934,1719337912995,-500.0,0.0002,2]
[330373935,1719337913005,-500.0,0.0002,2]
[330373936,1719337913014,-1092.3,0.0002,2]
[330373937,1719337913024,-2469.59,0.0002,2]
[330373938,1719337913035,-601.37515365,0.0002,2]
[330373939,1719337913045,-6611.18,0.0002,2]
[330373940,1719337913055,-536.8046112,0.0002,2]
[330373941,1719337913065,-500.0,0.0002,2]
[330373942,1719337913074,-500.0,0.0002,2]
[330373943,1719337913083,-8477.0,0.0002,2]
[330373944,1719337913094,-1672.78,0.0002,2]
[330373945,1719337913103,-854.06,0.0002,2]
[330373946,1719337913113,-536.71,0.0002,2]
[330373947,1719337913123,-500.0,0.0002,2]
[330373948,1719337913133,-151.0,0.0002,2]
[330373949,1719337913142,-5214.8,0.0002,2]
[330373950,1719337913156,-987.05,0.0002,2]
[330373951,1719337913166,-500.0,0.0002,2]
[330373952,1719337913176,-281.933475,0.0002,2]
[330373953,1719337913186,-500.0,0.0002,2]
[330373954,1719337913197,-500.0,0.0002,2]
[330373955,1719337913207,-500.0,0.0002,2]
[330373956,1719337913216,-500.0,0.0002,2]
[330373957,1719337913225,-500.0,0.0002,2]
[330373958,1719337913238,-500.0,0.0002,2]
[330373959,1719337913247,-500.0,0.0002,2]
[330373960,1719337913257,-500.0,0.0002,2]
[330373961,1719337913267,-500.0,0.0002,2]
[330373962,1719337913276,-500.0,0.0002,2]
[330373963,1719337913286,-996.42,0.0002,2]
[330373964,1719337913296,-3032.63,0.0002,2]
[330373965,1719337913307,-3109.31,0.0002,2]
[330373966,1719337913594,-500.0,0.0002,2]
[330373967,1719337913612,-1348.4,0.0002,2]
[330373968,1719337913622,-500.0,0.0002,2]
[330373969,1719337913632,-500.0,0.0002,2]
[330373970,1719337913641,-650.12,0.0002,2]
[330373971,1719337913651,-10484.79,0.0002,2]
[330373972,1719337913660,-500.0,0.0002,2]
[330373973,1719337913669,-1123.41,0.0002,2]
[330373974,1719337913679,-500.0,0.0002,2]
[330373975,1719337913687,-732.06,0.0002,2]
[330373976,1719337913697,-500.0,0.0002,2]
[330373977,1719337913707,-551.14,0.0002,2]
[330373978,1719337913716,-500.0,0.0002,2]
[330373979,1719337913726,-500.0,0.0002,2]
[330373980,1719337913735,-4888.19,0.0002,2]
[330373981,1719337913744,-1238.1,0.0002,2]
[330373982,1719337913754,-500.0,0.0002,2]
[330373983,1719337913763,-3533.14,0.0002,2]
[330373984,1719337913773,-3632.37,0.0002,2]
[330373985,1719337913782,-5123.32,0.0002,2]
[330373986,1719337913792,-500.0,0.0002,2]
[330373987,1719337913801,-500.0,0.0002,2]
[330373988,1719337913811,-500.0,0.0002,2]
[330373989,1719337913820,-712.46,0.0002,2]
[330373990,1719337913829,-500.0,0.0002,2]
[330373991,1719337913840,-862.31,0.0002,2]
[330373992,1719337913849,-500.0,0.0002,2]
[330373993,1719337913858,-560.41,0.0002,2]
[330373994,1719337913867,-500.0,0.0002,2]
[330373995,1719337913877,-2962.86,0.0002,2]
[330373996,1719337913886,-500.0,0.0002,2]
[330373997,1719337913897,-1124.52,0.0002,2]
[330373998,1719337913906,-5218.77,0.0002,2]
[330373999,1719337913916,-500.0,0.0002,2]
[330374000,1719337913925,-1050.12,0.0002,2]
[330374001,1719337913935,-872.11,0.0002,2]
[330374002,1719337913944,-500.0,0.0002,2]
[330374003,1719337913953,-3045.87,0.0002,2]
[330374004,1719337913963,-500.0,0.0002,2]
[330374005,1719337913972,-500.0,0.0002,2]
[330374006,1719337913981,-1520.45,0.0002,2]
[330374007,1719337913991,-646.32,0.0002,2]
[330374008,1719337914000,-2187.74,0.0002,2]
[330374009,1719337914009,-537.51,0.0002,2]
[330374010,1719337914019,-500.0,0.0002,2]
[330374011,1719337914029,-2920.92,0.0002,2]
[330374012,1719337914039,-500.0,0.0002,2]
[330374013,1719337914048,-7369.5,0.0002,2]
[330374014,1719337914058,-1872.97,0.0002,2]
[330374015,1719337914068,-4019.83,0.0002,2]
[330374016,1719337914078,-500.0,0.0002,2]
[330374017,1719337914089,-490.93663422,0.0002,2]
[330374018,1719337914098,-6045.57,0.0002,2]
[330374019,1719337914107,-500.0,0.0002,2]
[330374020,1719337914116,-812.36,0.0002,2]
[330374021,1719337914127,-500.0,0.0002,2]
[330374022,1719337914137,-500.0,0.0002,2]
[330374023,1719337914147,-634.34,0.0002,2]
[330374024,1719337914158,-500.0,0.0002,2]
[330374025,1719337914168,-805.26,0.0002,2]
[330374026,1719337914178,-587.96,0.0002,2]
[330374027,1719337914188,-2739.91,0.0002,2]
[330374028,1719337914199,-500.0,0.0002,2]
[330374029,1719337914208,-500.0,0.0002,2]
[330374030,1719337914218,-500.0,0.0002,2]
[330374032,1719337914228,-1158.31,0.0002,2]
[330374033,1719337914239,-1134.01,0.0002,2]
[330374034,1719337914249,-500.0,0.0002,2]
[330374035,1719337914258,-500.0,0.0002,2]
[330374036,1719337914268,-500.0,0.0002,2]
[330374037,1719337914278,-500.0,0.0002,2]
[330374038,1719337914288,-615.9,0.0002,2]
[330374039,1719337914298,-1656.37,0.0002,2]
[330374040,1719337914308,-643.79,0.0002,2]
[330374041,1719337914318,-500.0,0.0002,2]
[330374042,1719337914328,-500.0,0.0002,2]
[330374043,1719337914338,-559.06955634,0.0002,2]
[330374044,1719337914349,-2906.26,0.0002,2]
[330374045,1719337914361,-500.0,0.0002,2]
[330374046,1719337914371,-2209.86,0.0002,2]
[330374047,1719337914380,-1797.61,0.0002,2]
[330374048,1719337914390,-500.0,0.0002,2]
[330374049,1719337914399,-1052.7,0.0002,2]
[330374050,1719337914409,-513.22846534,0.0002,2]
[330374051,1719337914419,-519.16361129,0.0002,2]
[330374052,1719337914428,-1660.97,0.0002,2]
[330374053,1719337914438,-18533.12,0.0002,2]
[330374054,1719337914448,-9362.98,0.0002,2]
[330374055,1719337914457,-987.45,0.0002,2]
[330374056,1719337914467,-3674.69,0.0002,2]
[330374057,1719337914476,-500.0,0.0002,2]
[330374058,1719337914486,-500.0,0.0002,2]
[330374059,1719337914495,-500.0,0.0002,2]
[330374060,1719337914505,-500.0,0.0002,2]
[330374061,1719337914514,-500.0,0.0002,2]
[330374062,1719337914524,-521.43,0.0002,2]
[330374063,1719337914534,-500.0,0.0002,2]
[330374064,1719337914543,-1828.54,0.0002,2]
[330374065,1719337914553,-500.0,0.0002,2]
[330374066,1719337914562,-500.0,0.0002,2]
[330374067,1719337914572,-3489.35,0.0002,2]
[330374068,1719337914582,-500.0,0.0002,2]
[330374069,1719337914592,-1060.9,0.0002,2]
[330374070,1719337914602,-500.0,0.0002,2]
[330374071,1719337914611,-1048.33,0.0002,2]
[330374072,1719337914620,-500.0,0.0002,2]
[330374073,1719337914630,-582.75,0.0002,2]
[330374074,1719337914639,-500.0,0.0002,2]
[330374075,1719337914649,-7330.4,0.0002,2]
[330374076,1719337914658,-500.0,0.0002,2]
[330374077,1719337914668,-500.0,0.0002,2]
[330374078,1719337914677,-50997.71,0.0002,2]
[330374079,1719337914687,-1090.36,0.0002,2]
[330374080,1719337914697,-3826.38,0.0002,2]
[330374081,1719337914706,-588.44,0.0002,2]
[330374082,1719337914715,-500.0,0.0002,2]
[330374083,1719337914725,-1076.79,0.0002,2]
[330374084,1719337914735,-875.7,0.0002,2]
[330374085,1719337914744,-2013.15,0.0002,2]
[330374086,1719337914753,-1764.68,0.0002,2]
[330374087,1719337914762,-500.0,0.0002,2]
[330374088,1719337914772,-1202.57,0.0002,2]
[330374089,1719337914782,-2546.28,0.0002,2]
[330374090,1719337914792,-710.06,0.0002,2]
[330374091,1719337914801,-500.0,0.0002,2]
[330374092,1719337914811,-575.15,0.0002,2]
[330374093,1719337914823,-500.0,0.0002,2]
[330374094,1719337914832,-13097.11,0.0002,2]
[330374095,1719337914844,-2661.42,0.0002,2]
[330374096,1719337914855,-500.0,0.0002,2]
[330374097,1719337914864,-2226.45,0.0002,2]
[330374098,1719337914874,-632.99,0.0002,2]
[330374099,1719337914884,-500.0,0.0002,2]
[330374100,1719337914893,-500.0,0.0002,2]
[330374101,1719337914903,-500.0,0.0002,2]
[330374102,1719337914912,-538.22,0.0002,2]
[330374103,1719337914922,-1320.08,0.0002,2]
[330374104,1719337914931,-500.0,0.0002,2]
[330374105,1719337914941,-500.0,0.0002,2]
[330374106,1719337914950,-500.0,0.0002,2]
[330374107,1719337914959,-500.0,0.0002,2]
[330374108,1719337914969,-1721.67,0.0002,2]
[330374109,1719337914979,-2469.45,0.0002,2]
[330374110,1719337914989,-38471.4,0.0002,2]
[330374111,1719337914999,-500.0,0.0002,2]
[330374112,1719337915008,-1003.19,0.0002,2]
[330374113,1719337915017,-3940.81,0.0002,2]
[330374114,1719337915027,-1938.52,0.0002,2]
[330374115,1719337915037,-2588.15,0.0002,2]
[330374116,1719337915046,-501.66440704,0.0002,2]
[330374117,1719337915056,-500.0,0.0002,2]
[330374118,1719337915065,-7195.96,0.0002,2]
[330374119,1719337915074,-500.0,0.0002,2]
[330374120,1719337915084,-493.51457053,0.0002,2]
[330374121,1719337915101,-500.0,0.0002,2]
[330374122,1719337915110,-39156.53,0.0002,2]
[330374123,1719337915120,-3038.22,0.0002,2]
[330374124,1719337915129,-500.0,0.0002,2]
[330374125,1719337915140,-3163.49,0.0002,2]
[330374126,1719337915150,-935.24,0.0002,2]
[330374127,1719337915166,-860.82,0.0002,2]
[330374128,1719337915175,-1243.76,0.0002,2]
[330374129,1719337915185,-500.0,0.0002,2]
[330374130,1719337915195,-500.0,0.0002,2]
[330374131,1719337915205,-5532.62,0.0002,2]
[330374132,1719337915214,-500.0,0.0002,2]
[330374133,1719337915224,-500.0,0.0002,2]
[330374134,1719337915233,-500.0,0.0002,2]
[330374135,1719337915245,-2133.33,0.0002,2]
[330374136,1719337915254,-27639.02,0.0002,2]
[330374137,1719337915264,-8866.98031256,0.0002,2]
[330374138,1719337915274,-3599.25,0.0002,2]
[330374139,1719337915283,-500.0,0.0002,2]
[330374140,1719337915292,-1003.49,0.0002,2]
[330374141,1719337915302,-804.85,0.0002,2]
[330374142,1719337915312,-500.0,0.0002,2]
[330374143,1719337915321,-3089.03,0.0002,2]
[330374144,1719337915331,-13348.12,0.0002,2]
[330374145,1719337915343,-3865.6,0.0002,2]
[330374146,1719337915352,-1591.79,0.0002,2]
[330374147,1719337915362,-500.0,0.0002,2]
[330374148,1719337915372,-503.14326632,0.0002,2]
[330374149,1719337915382,-828.38,0.0002,2]
[330374150,1719337915391,-19322.86,0.0002,2]
[330374151,1719337915401,-500.0,0.0002,2]
[330374152,1719337915410,-500.0,0.0002,2]
[330374153,1719337915419,-500.0,0.0002,2]
[330374154,1719337915428,-500.0,0.0002,2]
[330374155,1719337915438,-516.72,0.0002,2]
[330374156,1719337915447,-3823.25,0.0002,2]
[330374157,1719337915456,-500.0,0.0002,2]
[330374158,1719337915466,-500.0,0.0002,2]
[330374159,1719337915475,-2767.76,0.0002,2]
[330374160,1719337915484,-2132.96,0.0002,2]
[330374161,1719337915493,-1930.49,0.0002,2]
[330374162,1719337915502,-829.42,0.0002,2]
[330374163,1719337915512,-768.12,0.0002,2]
[330374164,1719337915521,-2051.61,0.0002,2]
[330374165,1719337915530,-1106.84,0.0002,2]
[330374166,1719337915539,-500.0,0.0002,2]
[330374167,1719337915549,-500.0,0.0002,2]
[330374168,1719337915558,-9367.05,0.0002,2]
[330374169,1719337915568,-500.0,0.0002,2]
[330374170,1719337915577,-3643.02,0.0002,2]
[330374171,1719337915587,-2716.1,0.0002,2]
[330374172,1719337915601,-571.25,0.0002,2]
[330374173,1719337915611,-500.0,0.0002,2]
[330374174,1719337915620,-500.0,0.0002,2]
[330374175,1719337915630,-500.0,0.0002,2]
[330374176,1719337915640,-5116.79,0.0002,2]
[330374177,1719337915650,-6152.62,0.0002,2]
[330374178,1719337915659,-500.0,0.0002,2]
[330374179,1719337915669,-500.0,0.0002,2]
[330374180,1719337915679,-500.0,0.0002,2]
[330374181,1719337915688,-500.0,0.0002,2]
[330374182,1719337915698,-19689.46,0.0002,2]
[330374183,1719337915707,-500.0,0.0002,2]
[330374184,1719337915717,-658.03,0.0002,2]
[330374185,1719337915727,-20168.94,0.0002,2]
[330374186,1719337915736,-1026.1,0.0002,2]
[330374187,1719337915746,-1640.24,0.0002,2]
[330374188,1719337915756,-500.0,0.0002,2]
[330374189,1719337915765,-1760.02,0.0002,2]
[330374190,1719337915775,-500.0,0.0002,2]
[330374191,1719337915784,-500.0,0.0002,2]
[330374192,1719337915793,-1038.72,0.0002,2]
[330374193,1719337915802,-500.0,0.0002,2]
[330374194,1719337915811,-3388.45,0.0002,2]
[330374195,1719337915820,-500.0,0.0002,2]
[330374196,1719337915830,-500.0,0.0002,2]
[330374197,1719337915839,-500.0,0.0002,2]
[330374198,1719337915853,-500.0,0.0002,2]
[330374199,1719337915863,-500.0,0.0002,2]
[330374200,1719337915872,-4133.33,0.0002,2]
[330374201,1719337915882,-709.2,0.0002,2]
[330374202,1719337915891,-1249.47,0.0002,2]
[330374203,1719337915901,-2499.52,0.0002,2]
[330374204,1719337915910,-2511.23,0.0002,2]
[330374205,1719337915923,-500.0,0.0002,2]
[330374206,1719337915933,-991.31,0.0002,2]
[330374207,1719337915942,-500.0,0.0002,2]
[330374208,1719337915952,-16464.04,0.0002,2]
[330374209,1719337915961,-1636.71,0.0002,2]
[330374210,1719337915972,-500.0,0.0002,2]
[330374211,1719337915981,-1279.93,0.0002,2]
[330374212,1719337915991,-500.0,0.0002,2]
[330374213,1719337916001,-500.0,0.0002,2]
[330374214,1719337916011,-4519.25,0.0002,2]
[330374215,1719337916020,-711.6,0.0002,2]
[330374216,1719337916030,-635.3,0.0002,2]
[330374217,1719337916039,-813.02,0.0002,2]
[330374218,1719337916049,-867.36,0.0002,2]
[330374219,1719337916059,-984.69,0.0002,2]
[330374220,1719337916069,-2863.52,0.0002,2]
[330374221,1719337916079,-500.0,0.0002,2]
[330374222,1719337916089,-1078.44,0.0002,2]
[330374223,1719337916103,-579.91,0.0002,2]
[330374224,1719337916112,-484.69326735,0.0002,2]
[330374225,1719337916121,-204.340059,0.0002,2]
[330374226,1719337916131,-500.0,0.0002,2]
[330374227,1719337916141,-500.0,0.0002,2]
[330374228,1719337916152,-6876.69,0.0002,2]
[330374229,1719337916166,-1635.81,0.0002,2]
[330374230,1719337916175,-894.63,0.0002,2]
[330374231,1719337916185,-518.65628106,0.0002,2]
[330374232,1719337916194,-511.61,0.0002,2]
[330374233,1719337916206,-500.0,0.0002,2]
[330374234,1719337916215,-724.58,0.0002,2]
[330374235,1719337916224,-770.48,0.0002,2]
[330374236,1719337916234,-500.0,0.0002,2]
[330374237,1719337916243,-500.0,0.0002,2]
[330374238,1719337916253,-12811.41,0.0002,2]
[330374239,1719337916263,-1778.16,0.0002,2]
[330374240,1719337916272,-500.0,0.0002,2]
[330374241,1719337916281,-2214.33,0.0002,2]
[330374242,1719337916292,-627.16,0.0002,2]
[330374243,1719337916309,-500.0,0.0002,2]
[330374244,1719337916324,-1194.74,0.0002,2]
[330374245,1719337916336,-500.0,0.0002,2]
[330374246,1719337916353,-500.0,0.0002,2]
[330374247,1719337916368,-952.48,0.0002,2]
[330374248,1719337916383,-250.0,0.0002,2]
[330374249,1719337916397,-8218.06,0.0002,2]
[330374250,1719337916413,-6829.1,0.0002,2]
[330374251,1719337916429,-646.01,0.0002,2]
[330374252,1719337916443,-533.6,0.0002,2]
[330374253,1719337916456,-500.0,0.0002,2]
[330374254,1719337916470,-1023.86,0.0002,2]
[330374255,1719337916484,-2323.75,0.0002,2]
[330374256,1719337916497,-1807.94,0.0002,2]
[330374257,1719337916508,-500.0,0.0002,2]
[330374258,1719337916520,-500.0,0.0002,2]
[330374259,1719337916535,-468.9146041,0.0002,2]
[330374260,1719337916549,-11065.02,0.0002,2]
[330374261,1719337916564,-500.0,0.0002,2]
[330374262,1719337916580,-539.11,0.0002,2]
[330374263,1719337916596,-500.0,0.0002,2]
[330374264,1719337916607,-1104.07,0.0002,2]
[330374265,1719337916618,-500.0,0.0002,2]
[330374266,1719337916632,-500.0,0.0002,2]
[330374267,1719337916647,-663.89,0.0002,2]
[330374268,1719337916659,-600.35,0.0002,2]
[330374269,1719337916672,-501.0,0.0002,2]
[330374270,1719337916684,-500.0,0.0002,2]
[330374271,1719337916697,-522.35,0.0002,2]
[330374272,1719337916710,-5478.65,0.0002,2]